bitfinex/quotes_ETHUSD_20240926
["timestamp","ask_amount","ask_price","bid_price","bid_amount"]
[1727391722011,0.8167,2641.3,2640.9,7.13439035]
[1727391722213,0.8167,2641.3,2640.9,2.77958041]
[1727391722416,0.07350608,2641.2,2640.9,1.69205593]
[1727391722938,0.8167,2641.3,2640.9,1.69205593]
[1727391723292,0.07350608,2641.2,2640.9,1.69205593]
[1727391723818,0.0734262,2641.1,2640.9,1.69205593]
[1727391724041,3.1025362,2641.1,2640.7,3.15509187]
[1727391724243,0.8167,2641.0,2640.7,1.82954194]
[1727391724562,3.84586,2641.0,2640.7,0.13748601]
[1727391725508,0.0707439,2640.9,2640.7,0.13748601]
[1727391733727,0.0707439,2640.9,2640.8,1.69205593]
[1727391735202,0.0707439,2640.9,2640.8,1.69091541]
[1727391738143,0.0707439,2640.9,2640.7,0.13748601]
[1727391751542,0.0707439,2640.9,2640.8,4.76623593]
[1727391751747,0.0707439,2640.9,2640.8,11.35063578]
[1727391752044,0.7631,2641.9,2641.7,3.02834]
[1727391752941,0.7631,2641.9,2641.5,7.74910593]
[1727391753244,0.7631,2641.9,2641.5,4.72054593]
[1727391753733,0.7631,2641.9,2641.6,3.02846]
[1727391755255,0.06360013,2641.8,2641.6,3.02846]
[1727391757860,0.06360013,2641.8,2641.5,4.72054593]
[1727391758052,0.06360013,2641.8,2641.7,3.02835]
[1727391762147,0.06360013,2641.8,2641.5,5.19708052]
[1727391762347,0.06360013,2641.8,2641.5,7.74905593]
[1727391762949,0.06360013,2641.8,2641.6,3.02846]
[1727391763465,0.7631,2641.7,2641.5,4.72054593]
[1727391764358,0.7631,2641.7,2641.5,7.74902593]
[1727391764729,0.7631,2641.7,2641.6,3.02846]
[1727391765570,0.7631,2641.7,2641.5,4.72053593]
[1727391765775,0.7631,2641.7,2641.5,5.19258952]
[1727391765929,0.7631,2641.7,2641.5,8.22108952]
[1727391766631,0.7631,2641.7,2641.6,3.02846]
[1727391767470,0.7631,2641.7,2641.5,2.16410952]
[1727391767659,0.7631,2641.7,2641.5,5.19265952]
[1727391769088,0.7631,2641.7,2641.5,8.22120952]
[1727391769989,0.7631,2641.7,2641.5,5.19265952]
[1727391770317,0.7631,2642.1,2641.6,0.51926595]
[1727391770451,0.7631,2642.1,2642.0,1.69205593]
[1727391770656,0.7631,2642.1,2641.4,3.07345]
[1727391770657,0.7631,2642.1,2641.8,4.72028593]
[1727391771554,0.8226,2642.3,2642.0,4.72005593]
[1727391771757,0.39607779,2642.4,2642.2,1.69205593]
[1727391772057,3.02732,2642.6,2642.2,1.69205593]
[1727391772387,0.384992,2642.5,2642.2,1.69205593]
[1727391774200,0.06258733,2642.4,2642.2,1.69205593]
[1727391776681,3.02732,2642.6,2642.2,1.69205593]
[1727391777003,0.8226,2642.7,2642.2,4.71981593]
[1727391777189,3.84981,2642.7,2642.2,4.71981593]
[1727391777790,0.06297841,2642.6,2642.2,4.71981593]
[1727391778570,3.09031841,2642.6,2642.2,1.69205593]
[1727391781991,6.11769841,2642.6,2642.2,1.69205593]
[1727391782315,3.78434825,2642.6,2642.2,1.69205593]
[1727391783511,0.8226,2642.5,2642.0,1.69205593]
[1727391783707,3.85004,2642.5,2642.0,1.69205593]
[1727391783907,0.06308885,2642.4,2642.0,1.69205593]
[1727391784121,0.06308885,2642.4,2642.0,4.71999593]
[1727391786071,0.06308885,2642.4,2642.1,3.02778]
[1727391788511,0.06308885,2642.4,2642.2,1.69205593]
[1727391791473,0.06308885,2642.4,2642.2,4.71976593]
[1727391792115,0.06308885,2642.4,2642.2,1.69205593]
[1727391792325,0.06308885,2642.4,2642.3,3.02766]
[1727391800360,0.06308885,2642.4,2642.2,4.71982593]
[1727391800663,0.06308885,2642.4,2642.2,1.69205593]
[1727391803209,0.06308885,2642.4,2642.2,4.71977593]
[1727391805256,0.06308885,2642.4,2642.2,7.74748593]
[1727391805847,0.06308885,2642.4,2642.2,4.71976593]
[1727391806168,0.06308885,2642.4,2642.3,3.02766]
[1727391826454,0.06308885,2642.4,2642.3,3.91090868]
[1727391826654,0.06308885,2642.4,2642.3,3.91091639]
[1727391826876,0.06308885,2642.4,2642.3,3.02766]
[1727391827050,0.06308885,2642.4,2642.3,3.91088632]
[1727391827250,0.06308885,2642.4,2642.3,6.23271163]
[1727391827789,0.06308885,2642.4,2642.3,4.90787696]
[1727391828890,0.06308885,2642.4,2642.3,3.91088632]
[1727391830045,0.06308885,2642.4,2642.3,3.91089371]
[1727391830591,0.7768,2642.8,2642.3,3.91089371]
[1727391830751,0.7768,2642.8,2642.4,1.69205593]
[1727391831656,0.7768,2642.8,2642.4,4.71958593]
[1727391832592,1.31513115,2642.8,2642.4,4.71958593]
[1727391833956,0.7768,2642.8,2642.4,4.71950593]
[1727391834255,0.0626701,2642.7,2642.4,7.74698593]
[1727391834535,0.7768,2642.8,2642.4,4.71950593]
[1727391834740,0.06259036,2642.6,2642.4,4.71950593]
[1727391834902,0.7768,2642.8,2642.4,4.71950593]
[1727391835102,0.06251062,2642.5,2642.4,4.71950593]
[1727391835298,0.7768,2642.8,2642.4,4.71950593]
[1727391835499,0.06251062,2642.5,2642.4,4.71950593]
[1727391835699,0.7768,2642.8,2642.4,4.71950593]
[1727391835902,0.06251062,2642.5,2642.4,4.71950593]
[1727391836101,0.7768,2642.8,2642.4,4.71950593]
[1727391836334,0.06251062,2642.5,2642.4,4.71950593]
[1727391836535,0.7768,2642.8,2642.4,5.60293066]
[1727391836736,0.06251062,2642.5,2642.4,4.71950593]
[1727391836947,0.7768,2642.8,2642.4,4.71950593]
[1727391837235,0.06251062,2642.5,2642.4,4.71950593]
[1727391837439,0.7768,2642.8,2642.5,3.02743]
[1727391837602,0.7768,2642.8,2642.6,4.71936593]
[1727391837805,0.0626701,2642.7,2642.6,4.71936593]
[1727391838005,0.0626701,2642.7,2642.6,5.66763328]
[1727391838233,1.58346246,2643.2,2642.9,3.02687]
[1727391838234,0.75834099,2643.2,2642.9,3.02687]
[1727391838502,0.75834099,2643.2,2643.1,1.69205593]
[1727391839251,0.00394099,2643.2,2643.1,1.69205593]
[1727391841244,0.06732301,2643.2,2642.9,1.69205593]
[1727391841426,0.06732301,2643.2,2642.9,4.71902593]
[1727391842209,0.06732301,2643.2,2642.9,1.69205593]
[1727391843144,0.06732301,2643.2,2642.9,4.71902593]
[1727391843314,0.06732301,2643.2,2642.9,5.49811052]
[1727391843520,0.06732301,2643.2,2643.1,1.69205593]
[1727391846343,0.06732301,2643.2,2642.9,4.71902593]
[1727391846935,0.06732301,2643.2,2642.9,1.69205593]
[1727391848460,0.06732301,2643.2,2642.9,4.71896593]
[1727391849163,0.06732301,2643.2,2643.0,3.02684]
[1727391849625,0.06732301,2643.2,2643.1,1.69205593]
[1727391850757,0.06732301,2643.2,2643.1,4.83926238]
[1727391850958,0.06732301,2643.2,2643.1,4.76359593]
[1727391851461,0.00394099,2643.2,2643.1,4.76359593]
[1727391851664,0.00394099,2643.2,2643.1,5.5886119]
[1727391856464,0.00394099,2643.2,2643.1,0.82501597]
[1727391856771,0.00394099,2643.2,2643.1,1.69205593]
[1727391856970,0.06811843,2643.2,2643.1,1.69205593]
[1727391870374,3.02678,2643.1,2642.8,0.0448]
[1727391870531,3.02678,2643.1,2642.8,1.69205593]
[1727391870731,0.06146113,2643.0,2642.8,1.69205593]
[1727391871569,3.0268,2643.1,2642.8,1.69205593]
[1727391871780,0.06137658,2642.9,2642.8,1.69205593]
[1727391871983,3.0268,2643.1,2642.8,1.69205593]
[1727391872191,0.06137658,2642.9,2642.8,1.69205593]
[1727391872346,3.0268,2643.1,2642.8,1.69205593]
[1727391872671,3.0268,2643.1,2643.0,1.69205593]
[1727391873555,0.7707,2642.8,2642.4,10.3848]
[1727391873755,3.79779,2642.8,2642.7,1.69205593]
[1727391873962,3.0273,2642.7,2642.5,1.69205593]
[1727391874269,6.82497,2642.8,2642.6,1.69205593]
[1727391874444,3.0272,2642.7,2642.6,1.69205593]
[1727391874640,3.02734,2642.6,2642.2,0.0448]
[1727391874848,0.7707,2642.5,2642.1,0.5]
[1727391875150,0.7707,2642.5,2642.2,1.69205593]
[1727391875151,3.85893357,2642.5,2642.2,1.69205593]
[1727391875901,3.85893357,2642.5,2642.4,1.69205593]
[1727391877156,0.83140357,2642.5,2642.4,1.69205593]
[1727391879109,0.7707,2642.5,2642.4,1.69205593]
[1727391879403,0.83136894,2642.5,2642.4,1.69205593]
[1727391885107,3.85879894,2642.5,2642.4,1.69205593]
[1727391887473,0.83136894,2642.5,2642.4,1.69205593]
[1727391888175,3.85879894,2642.5,2642.4,1.69205593]
[1727391889806,0.83136894,2642.5,2642.4,1.69205593]
[1727391894893,3.85879894,2642.5,2642.4,1.69205593]
[1727391896126,0.83136894,2642.5,2642.4,1.69205593]
[1727391896507,3.85879894,2642.5,2642.4,1.69205593]
[1727391898340,2.99166433,2642.5,2642.4,1.69205593]
[1727391900801,0.05825739,2642.5,2642.4,1.69205593]
[1727391903427,3.08568739,2642.5,2642.4,1.69205593]
[1727391903636,3.80516,2642.3,2642.1,0.5]
[1727391903940,0.05795353,2642.2,2642.1,0.5]
[1727391904150,3.80516,2642.3,2642.1,0.5]
[1727391904323,0.05795353,2642.2,2642.1,0.5]
[1727391904502,3.80516,2642.3,2642.1,0.5]
[1727391904708,0.05787627,2642.2,2642.1,0.5]
[1727391904903,3.08564627,2642.2,2642.1,0.5]
[1727391905447,3.61674476,2642.2,2642.1,0.5]
[1727391905655,4.39414476,2642.2,2642.1,0.5]
[1727391908318,3.86304627,2642.2,2642.1,0.5]
[1727391911836,5.5551022,2642.2,2642.1,0.5]
[1727391912568,3.86304627,2642.2,2642.1,0.5]
[1727391913780,5.44256774,2642.2,2642.1,0.5]
[1727391914477,3.86304627,2642.2,2642.1,0.5]
[1727391917877,5.44256774,2642.2,2642.1,0.5]
[1727391918076,3.86304627,2642.2,2642.1,0.5]
[1727391918596,5.44256774,2642.2,2642.1,0.5]
[1727391918739,8.84245655,2642.2,2642.1,0.5]
[1727391919276,6.86304627,2642.2,2642.1,0.5]
[1727391919477,9.23833861,2642.2,2642.1,0.5]
[1727391919679,9.23574498,2642.2,2642.1,0.5]
[1727391920770,9.63185894,2642.2,2642.1,0.5]
[1727391921453,3.02927,2640.9,2640.8,0.03431561]
[1727391921646,3.715065,2640.9,2640.8,0.03431561]
[1727391921846,3.08368627,2640.9,2640.8,0.03431561]
[1727391932172,3.15353283,2640.9,2640.8,0.03431561]
[1727391963468,3.93863283,2640.9,2640.8,0.03431561]
[1727391963674,5.51270321,2640.9,2640.8,0.03431561]
[1727391964170,5.523758,2640.9,2640.8,0.03431561]
[1727391964373,5.91566613,2640.9,2640.8,0.03431561]
[1727391964745,3.93863283,2640.9,2640.8,0.03431561]
[1727391965145,5.92057951,2640.9,2640.8,0.03431561]
[1727391965349,3.93863283,2640.9,2640.8,0.03431561]
[1727391966469,6.31107279,2640.9,2640.8,0.03431561]
[1727391966678,6.31644492,2640.9,2640.8,0.03431561]
[1727391968282,3.93863283,2640.9,2640.8,0.03431561]
[1727391968836,6.31641136,2640.9,2640.8,0.03431561]
[1727391969081,3.93863283,2640.9,2640.8,0.03431561]
[1727391969241,6.31648065,2640.9,2640.8,0.03431561]
[1727391970678,3.93863283,2640.9,2640.8,0.03431561]
[1727391970840,5.13457182,2640.9,2640.8,0.03431561]
[1727391971040,3.15353283,2640.9,2640.8,0.83071561]
[1727391971476,3.15353283,2640.9,2640.8,0.03431561]
[1727391972381,4.7385781,2640.9,2640.8,0.03431561]
[1727391973542,3.15353283,2640.9,2640.8,0.03431561]
[1727391974445,4.7385781,2640.9,2640.8,0.03431561]
[1727391974749,3.15353283,2640.9,2640.8,0.03431561]
[1727391985407,4.7385781,2640.9,2640.8,0.03431561]
[1727391985618,5.13498052,2640.9,2640.8,0.03431561]
[1727391988208,3.15353283,2640.9,2640.8,0.03431561]
[1727391988977,5.13498052,2640.9,2640.8,0.03431561]
[1727391992118,3.15353283,2640.9,2640.8,0.03431561]
[1727391993320,4.73817718,2640.9,2640.8,0.03431561]
[1727391993490,3.15353283,2640.9,2640.8,0.03431561]
[1727392016118,4.73817718,2640.9,2640.8,0.03431561]
[1727392022328,1.70890718,2640.9,2640.8,0.03431561]
[1727392022558,4.73817718,2640.9,2640.8,0.03431561]
[1727392022764,3.15353283,2640.9,2640.8,0.03431561]
[1727392023845,4.73817718,2640.9,2640.8,0.03431561]
[1727392026482,3.15353283,2640.9,2640.8,0.03431561]
[1727392026986,5.13497403,2640.9,2640.8,0.03431561]
[1727392027548,3.15353283,2640.9,2640.8,0.03431561]
[1727392027950,4.73861126,2640.9,2640.8,0.03431561]
[1727392028877,3.15353283,2640.9,2640.8,0.03431561]
[1727392029077,5.13469463,2640.9,2640.8,0.03431561]
[1727392029663,2.10542463,2640.9,2640.8,0.03431561]
[1727392029862,1.70894659,2640.9,2640.8,0.03431561]
[1727392030181,4.73821659,2640.9,2640.8,0.03431561]
[1727392031446,5.91669463,2640.9,2640.8,0.03431561]
[1727392031673,3.93553283,2640.9,2640.8,0.03431561]
[1727392031873,5.91669463,2640.9,2640.8,0.03431561]
[1727392032580,5.13469463,2640.9,2640.8,0.03431561]
[1727392035889,5.13605465,2640.9,2640.8,0.03431561]
[1727392037178,3.15353283,2640.9,2640.8,0.03431561]
[1727392037379,5.13638118,2640.9,2640.8,0.03431561]
[1727392038290,5.13625198,2640.9,2640.8,0.03431561]
[1727392039081,3.15353283,2640.9,2640.8,0.03431561]
[1727392040297,5.13628729,2640.9,2640.8,0.03431561]
[1727392041203,3.15353283,2640.9,2640.8,0.03431561]
[1727392041699,5.13623361,2640.9,2640.8,0.03431561]
[1727392041901,3.91153283,2640.9,2640.8,0.03431561]
[1727392042975,5.89427555,2640.9,2640.8,0.03431561]
[1727392043386,3.91153283,2640.9,2640.8,0.03431561]
[1727392043789,5.8941007,2640.9,2640.8,0.03431561]
[1727392044111,3.91153283,2640.9,2640.8,0.03431561]
[1727392046376,5.89390278,2640.9,2640.8,0.03431561]
[1727392046709,5.5257297,2640.9,2640.8,0.03431561]
[1727392047208,6.29079581,2640.9,2640.8,0.03431561]
[1727392047416,3.91153283,2640.9,2640.8,0.03431561]
[1727392047615,6.29079581,2640.9,2640.8,0.03431561]
[1727392048513,6.28967414,2640.9,2640.8,0.03431561]
[1727392049071,3.91153283,2640.9,2640.8,0.03431561]
[1727392052142,5.5257297,2640.9,2640.8,0.03431561]
[1727392052272,7.90387101,2640.9,2640.8,0.03431561]
[1727392052476,5.5257297,2640.9,2640.8,0.03431561]
[1727392052673,7.90387101,2640.9,2640.8,0.03431561]
[1727392053174,5.5257297,2640.9,2640.8,0.03431561]
[1727392053596,7.9030487,2640.9,2640.8,0.03431561]
[1727392054377,7.90287506,2640.9,2640.8,0.03431561]
[1727392054778,5.5257297,2640.9,2640.8,0.03431561]
[1727392055490,7.90287506,2640.9,2640.8,0.03431561]
[1727392055687,10.90287506,2640.9,2640.8,0.03431561]
[1727392055912,8.5257297,2640.9,2640.8,0.03431561]
[1727392056533,10.90213179,2640.9,2640.8,0.03431561]
[1727392057797,8.5257297,2640.9,2640.8,0.03431561]
[1727392062151,11.29906595,2640.9,2640.8,0.03431561]
[1727392062842,12.5157297,2640.9,2640.8,0.03431561]
[1727392063045,12.5157297,2640.9,2640.7,0.1]
[1727392063046,12.77738,2640.8,2640.7,0.1]
[1727392063359,12.89182036,2640.8,2640.7,0.1]
[1727392063565,13.01402981,2640.8,2640.7,0.1]
[1727392064565,2.0,2640.3,2640.0,0.0382566]
[1727392064767,8.40237687,2640.1,2640.0,0.0382566]
[1727392065068,10.774083,2640.1,2640.0,0.0382566]
[1727392065264,11.28335323,2640.1,2640.0,0.0382566]
[1727392066362,8.9116471,2640.1,2640.0,0.0382566]
[1727392067773,10.88667168,2640.1,2640.0,0.0382566]
[1727392067947,8.9116471,2640.1,2640.0,0.0382566]
[1727392069374,10.88602925,2640.1,2640.0,0.0382566]
[1727392070045,11.28335323,2640.1,2640.0,0.0382566]
[1727392070768,8.9116471,2640.1,2640.0,0.0382566]
[1727392070983,11.28335323,2640.1,2640.0,0.0382566]
[1727392071336,8.9116471,2640.1,2640.0,0.0382566]
[1727392072376,11.28335323,2640.1,2640.0,0.0382566]
[1727392072576,8.9116471,2640.1,2640.0,0.0382566]
[1727392078080,10.88135202,2640.1,2640.0,0.0382566]
[1727392078378,8.9116471,2640.1,2640.0,0.0382566]
[1727392079282,9.30721321,2640.1,2640.0,0.0382566]
[1727392080443,11.67079063,2640.1,2640.0,0.0382566]
[1727392080643,9.30721321,2640.1,2640.0,0.0382566]
[1727392080882,11.67079063,2640.1,2640.0,0.0382566]
[1727392081396,9.30721321,2640.1,2640.0,0.0382566]
[1727392081759,13.29721321,2640.1,2640.0,0.0382566]
[1727392082857,15.65994531,2640.1,2640.0,0.0382566]
[1727392083054,13.29721321,2640.1,2640.0,0.0382566]
[1727392084001,6.8194,2639.3,2639.2,0.0382566]
[1727392084185,10.43359687,2639.3,2639.2,0.0382566]
[1727392084366,12.50874105,2639.3,2639.2,0.0382566]
[1727392084769,12.90504918,2639.3,2639.2,0.0382566]
[1727392085294,12.50998921,2639.3,2639.2,0.0382566]
[1727392086296,12.5094924,2639.3,2639.2,0.0382566]
[1727392088898,10.93669923,2639.3,2639.2,0.0382566]
[1727392089570,11.33143431,2639.3,2639.2,0.0382566]
[1727392091873,15.32143431,2639.3,2639.2,0.0382566]
[1727392095122,11.33143431,2639.3,2639.2,0.0382566]
[1727392100597,12.90422748,2639.3,2639.2,0.0382566]
[1727392102433,11.33143431,2639.3,2639.2,0.0382566]
[1727392102604,11.29110234,2639.3,2639.2,0.0382566]
[1727392102919,12.90529921,2639.3,2639.2,0.0382566]
[1727392103094,11.33143431,2639.3,2639.2,0.0382566]
[1727392103291,12.90529921,2639.3,2639.2,0.0382566]
[1727392103828,11.33143431,2639.3,2639.2,0.0382566]
[1727392103998,12.9058084,2639.3,2639.2,0.0382566]
[1727392104510,13.29951384,2639.3,2639.2,0.0382566]
[1727392105516,11.33143431,2639.3,2639.2,0.0382566]
[1727392107696,13.69687603,2639.3,2639.2,0.0382566]
[1727392108125,11.33143431,2639.3,2639.2,0.0382566]
[1727392108509,13.69687603,2639.3,2639.2,0.0382566]
[1727392109224,6.03202,2638.5,2638.4,0.0382566]
[1727392109429,9.22418748,2638.5,2638.4,0.0382566]
[1727392109609,9.22418748,2638.5,2637.6,0.0382566]
[1727392109610,2.0,2638.2,2637.9,0.8061]
[1727392109814,6.03294,2637.7,2637.6,0.0382566]
[1727392110027,7.64713687,2637.7,2637.6,0.8443566]
[1727392110306,6.13748668,2637.7,2637.6,0.8443566]
[1727392117712,6.13748668,2637.7,2637.6,0.0382566]
[1727392118857,7.71533236,2637.7,2637.6,0.0382566]
[1727392120251,6.13748668,2637.7,2637.6,0.0382566]
[1727392120552,7.71533236,2637.7,2637.6,0.0382566]
[1727392120715,6.13748668,2637.7,2637.6,0.0382566]
[1727392125447,6.53378567,2637.7,2637.6,0.0382566]
[1727392129557,8.11163135,2637.7,2637.6,0.0382566]
[1727392129856,6.53378567,2637.7,2637.6,0.0382566]
[1727392130545,8.11163135,2637.7,2637.6,0.0382566]
[1727392131734,6.53378567,2637.7,2637.6,0.0382566]
[1727392131931,8.11163135,2637.7,2637.6,0.0382566]
[1727392132926,6.53378567,2637.7,2637.6,0.0382566]
[1727392133165,8.11163135,2637.7,2637.6,0.0382566]
[1727392133520,6.53378567,2637.7,2637.6,0.0382566]
[1727392134158,8.11163135,2637.7,2637.6,0.0382566]
[1727392134467,6.53378567,2637.7,2637.6,0.0382566]
[1727392135260,8.11163135,2637.7,2637.6,0.0382566]
[1727392135562,8.11163135,2637.7,2637.6,0.8519566]
[1727392135563,6.53378567,2637.7,2637.6,0.8519566]
[1727392139546,3.53378567,2637.7,2637.6,0.8519566]
[1727392140762,6.53378567,2637.7,2637.6,0.8519566]
[1727392140967,3.53378567,2637.7,2637.6,0.8519566]
[1727392141172,6.53378567,2637.7,2637.6,0.8519566]
[1727392144431,3.53378567,2637.7,2637.6,0.8519566]
[1727392144830,6.53378567,2637.7,2637.6,0.8519566]
[1727392150650,3.53378567,2637.7,2637.6,0.8519566]
[1727392151893,4.34823181,2637.7,2637.6,0.8519566]
[1727392152063,4.34823181,2637.7,2637.6,0.0382566]
[1727392152253,5.92607749,2637.7,2637.6,0.0382566]
[1727392153153,6.3241682,2637.7,2637.6,0.0382566]
[1727392153692,4.34823181,2637.7,2637.6,0.0382566]
[1727392153894,9.3241682,2637.7,2637.6,0.0382566]
[1727392154204,7.34823181,2637.7,2637.6,0.0382566]
[1727392155259,9.72311794,2637.7,2637.6,0.0382566]
[1727392157188,7.34823181,2637.7,2637.6,0.0382566]
[1727392160867,8.15613181,2637.7,2637.6,0.0382566]
[1727392162017,10.53269274,2637.7,2637.6,0.0382566]
[1727392162181,8.15613181,2637.7,2637.6,0.0382566]
[1727392166023,10.53314956,2637.7,2637.6,0.0382566]
[1727392166228,8.15613181,2637.7,2637.6,0.0382566]
[1727392169331,7.34823181,2637.7,2637.6,0.0382566]
[1727392169748,9.72555595,2637.7,2637.6,0.0382566]
[1727392169948,9.72550754,2637.7,2637.6,0.0382566]
[1727392170335,9.72552983,2637.7,2637.6,0.0382566]
[1727392171158,9.72703021,2637.7,2637.6,0.0382566]
[1727392171453,7.34823181,2637.7,2637.6,0.0382566]
[1727392171758,9.72710787,2637.7,2637.6,0.0382566]
[1727392173128,3.53378567,2637.7,2637.6,0.0382566]
[1727392173758,5.51633439,2637.7,2637.6,0.0382566]
[1727392174057,3.53378567,2637.7,2637.6,0.0382566]
[1727392174433,6.53378567,2637.7,2637.6,0.0382566]
[1727392178822,8.51654393,2637.7,2637.6,0.8525566]
[1727392179658,8.51650099,2637.7,2637.6,0.8525566]
[1727392179880,6.53378567,2637.7,2637.6,0.8525566]
[1727392180049,8.51634256,2637.7,2637.6,0.8525566]
[1727392180359,6.53378567,2637.7,2637.6,0.0382566]
[1727392190355,6.53378567,2637.7,2637.6,0.8525566]
[1727392190576,8.51681964,2637.7,2637.6,0.8525566]
[1727392190728,6.53378567,2637.7,2637.6,0.8525566]
[1727392191353,6.53378567,2637.7,2637.6,0.0382566]
[1727392192625,8.9132983,2637.7,2637.6,0.0382566]
[1727392193261,6.53378567,2637.7,2637.6,0.0382566]
[1727392193462,8.91306681,2637.7,2637.6,0.0382566]
[1727392194170,8.91312209,2637.7,2637.6,0.0382566]
[1727392194726,6.53378567,2637.7,2637.6,0.0382566]
[1727392198847,7.33778567,2637.7,2637.6,0.0382566]
[1727392199051,10.11326698,2637.7,2637.6,0.0382566]
[1727392200086,7.33778567,2637.7,2637.6,0.0382566]
[1727392200460,10.11326698,2637.7,2637.6,0.0382566]
[1727392200655,7.33778567,2637.7,2637.6,0.0382566]
[1727392200963,10.11326698,2637.7,2637.6,0.0382566]
[1727392201762,7.33778567,2637.7,2637.6,0.0382566]
[1727392202085,10.61705152,2637.7,2637.6,0.0382566]
[1727392202954,10.61507633,2637.7,2637.6,0.0382566]
[1727392203157,7.73169652,2637.7,2637.6,0.0382566]
[1727392203396,7.73169652,2637.7,2636.8,0.0382566]
[1727392203397,2.0,2637.3,2636.8,0.0382566]
[1727392203600,8.45205687,2636.9,2636.8,0.0382566]
[1727392203762,10.82911488,2636.9,2636.8,0.0382566]
[1727392203956,10.929545,2636.9,2636.8,0.0382566]
[1727392204204,11.3257738,2636.9,2636.8,0.0382566]
[1727392204399,8.94871579,2636.9,2636.8,0.0382566]
[1727392207099,7.33451892,2636.9,2636.8,0.0382566]
[1727392207311,8.50877407,2636.9,2636.8,0.8339566]
[1727392207464,8.11317192,2636.9,2636.8,0.8339566]
[1727392207665,8.1131628,2636.9,2636.8,0.8339566]
[1727392208079,6.53051892,2636.9,2636.8,0.8339566]
[1727392208286,8.11288746,2636.9,2636.8,0.8339566]
[1727392208865,8.11288746,2636.9,2636.8,0.0382566]
[1727392216447,6.53051892,2636.9,2636.8,0.0382566]
[1727392216629,8.11288746,2636.9,2636.8,0.0382566]
[1727392216807,9.72708433,2636.9,2636.8,0.0382566]
[1727392220346,8.95981579,2636.9,2636.8,0.0382566]
[1727392221643,10.93610878,2636.9,2636.8,0.0382566]
[1727392222455,10.93588589,2636.9,2636.8,0.0382566]
[1727392223538,8.95981579,2636.9,2636.8,0.0382566]
[1727392223737,10.93584292,2636.9,2636.8,0.0382566]
[1727392224170,8.95981579,2636.9,2636.8,0.0382566]
[1727392224669,10.93573783,2636.9,2636.8,0.0382566]
[1727392225203,8.95981579,2636.9,2636.8,0.0382566]
[1727392225410,10.93618162,2636.9,2636.8,0.0382566]
[1727392225624,8.95981579,2636.9,2636.8,0.0382566]
[1727392226321,11.35370331,2636.9,2636.8,0.0382566]
[1727392227400,13.72440377,2636.9,2636.8,0.0382566]
[1727392227916,11.35370331,2636.9,2636.8,0.0382566]
[1727392228279,13.72440377,2636.9,2636.8,0.0382566]
[1727392230643,9.2951069,2636.9,2636.8,0.0382566]
[1727392230803,3.92440644,2636.9,2636.8,0.0382566]
[1727392230988,0.49665892,2636.9,2636.8,2.47775347]
[1727392231188,0.49665892,2636.9,2636.8,2.72552882]
[1727392231435,0.10043012,2636.9,2636.8,2.72552882]
[1727392231733,3.03336,2637.4,2636.8,4.93420882]
[1727392231929,3.03365,2637.1,2636.9,0.8253]
[1727392232114,3.03365,2637.1,2636.9,1.61419687]
[1727392232286,3.03365,2637.1,2637.0,0.8253]
[1727392232626,3.03365,2637.1,2637.0,1.07307535]
[1727392232996,3.03339,2637.4,2637.1,0.8253]
[1727392233196,3.03339,2637.4,2637.1,1.61419687]
[1727392233428,3.03339,2637.4,2637.2,0.8253]
[1727392233734,0.1266181,2637.3,2637.2,0.8253]
[1727392233902,0.1266181,2637.3,2637.2,0.26872722]
[1727392234232,0.1266181,2637.3,2637.2,1.09402722]
[1727392234689,0.1266181,2637.3,2637.2,0.8253]
[1727392237592,3.1600181,2637.3,2637.2,0.8253]
[1727392242705,3.03375,2637.0,2636.9,0.7946]
[1727392243128,3.1601404,2637.0,2636.9,0.7946]
[1727392245454,3.03386,2636.9,2636.8,0.0382566]
[1727392245762,3.65324104,2636.9,2636.8,0.0382566]
[1727392246059,3.77985633,2636.9,2636.8,0.0382566]
[1727392254135,3.77985633,2636.9,2636.8,0.8196566]
[1727392255355,3.16047529,2636.9,2636.8,0.8196566]
[1727392256550,3.16047529,2636.9,2636.8,0.0382566]
[1727392262939,0.12661529,2636.9,2636.8,0.0382566]
[1727392263441,3.16047529,2636.9,2636.8,0.8196566]
[1727392265547,0.12661529,2636.9,2636.8,0.8196566]
[1727392265745,3.03366,2637.1,2636.8,1.36691784]
[1727392265989,0.12604445,2637.0,2636.8,1.36691784]
[1727392266152,0.12604445,2637.0,2636.8,0.58551784]
[1727392266350,0.12604445,2637.0,2636.9,0.7574]
[1727392266552,0.12604445,2637.0,2636.9,1.05357637]
[1727392266740,0.12604445,2637.0,2636.9,0.7574]
[1727392280474,3.15979445,2637.0,2636.9,0.7574]
[1727392284390,0.12604445,2637.0,2636.9,2.37624583]
[1727392284605,0.39619653,2637.3,2636.9,1.61884583]
[1727392284928,3.42965653,2637.3,2637.1,2.40584583]
[1727392285421,3.42965653,2637.3,2637.1,0.787]
[1727392288206,0.1219414,2637.2,2637.1,0.787]
[1727392289225,3.42965653,2637.3,2637.1,0.787]
[1727392289533,0.1219414,2637.2,2637.1,0.787]
[1727392289892,3.42965653,2637.3,2637.1,0.787]
[1727392290242,0.12207238,2637.2,2637.1,0.787]
[1727392290422,3.03352,2637.2,2637.1,0.787]
[1727392290593,3.15557297,2637.2,2637.1,0.787]
[1727392293925,3.15557297,2637.2,2636.9,2.40584583]
[1727392294127,3.15557297,2637.2,2636.9,0.787]
[1727392298322,0.12205297,2637.2,2636.9,0.787]
[1727392298713,2.3654479,2637.4,2636.8,0.0382566]
[1727392299040,3.03375,2637.0,2636.8,0.0382566]
[1727392299540,0.12190773,2636.9,2636.8,0.0382566]
[1727392300741,0.12190773,2636.9,2636.8,1.65710243]
[1727392301132,3.03366,2637.1,2636.8,1.65710243]
[1727392301311,0.121801,2636.9,2636.8,1.65710243]
[1727392301940,3.03366,2637.1,2636.8,1.65710243]
[1727392302143,0.121801,2636.9,2636.8,1.65710243]
[1727392302344,3.03366,2637.1,2636.8,1.65710243]
[1727392302524,0.121801,2636.9,2636.8,1.90023267]
[1727392302846,0.12183497,2636.9,2636.8,1.90023267]
[1727392303015,3.03348,2637.3,2636.8,1.90023267]
[1727392303214,5.3987679,2637.4,2636.8,1.90023267]
[1727392303215,3.03352,2637.2,2636.9,0.57084127]
[1727392303517,3.03352,2637.2,2636.8,1.65710243]
[1727392304852,0.12204499,2637.1,2636.8,1.65710243]
[1727392305154,3.15575499,2637.1,2636.8,0.0382566]
[1727392306958,6.18944499,2637.1,2636.8,0.0382566]
[1727392307112,3.03375,2637.0,2636.8,0.0382566]
[1727392307314,3.15573499,2637.1,2636.8,0.0382566]
[1727392307515,0.12098469,2636.9,2636.8,0.0382566]
[1727392307719,3.03369,2637.1,2636.8,0.0382566]
[1727392307917,0.12096044,2636.9,2636.8,0.0382566]
[1727392308142,6.06743,2637.1,2636.8,0.0382566]
[1727392308143,3.03376,2637.0,2636.8,0.0382566]
[1727392308336,0.12096044,2636.9,2636.8,0.0382566]